[Event "Klubbmästerskap 2025 Torsdagar"]
[Site "Linköping, Sweden"]
[Date "2025.03.06"]
[Round "6.1"]
[White "Löfgren, Vide"]
[Black "Nagy, Mate 2009"]
[Result "1-0"]
[TimeControl "90 min + 30 sec/move"]
[WhiteElo "1928"]
[BlackElo "1917"]

1. d4 {[%clk 01:30:59]} {[%emt 00:00:01]} d5 {[%clk 01:30:41]} {[%emt
00:00:19]} 2. Bg5 {[%clk 01:30:06]} {[%emt 00:01:23]} f6 {[%clk 01:30:02]}
{[%emt 00:01:10]} 3. Bd2 {[%clk 01:29:42]} {[%emt 00:00:53]} Nc6 {[%clk
01:29:21]} {[%emt 00:01:11]} 4. e3 {[%clk 01:24:48]} {[%emt 00:05:25]} Bf5
{[%clk 01:27:59]} {[%emt 00:01:51]} 5. Bd3 {[%clk 01:22:49]} {[%emt 00:02:28]}
Nh6 {[%clk 01:21:32]} {[%emt 00:06:57]} 6. Qh5+ {[%clk 01:10:16]} {[%emt
00:13:02]} g6 {[%clk 01:21:28]} {[%emt 00:00:36]} 7. Qe2 {[%clk 01:10:17]}
{[%emt 00:00:28]} Qd7 {[%clk 01:18:44]} {[%emt 00:03:14]} 8. Nf3 {[%clk
01:05:23]} {[%emt 00:05:25]} Bg7 {[%clk 01:10:45]} {[%emt 00:08:29]} 9. O-O
{[%clk 01:02:23]} {[%emt 00:03:29]} O-O {[%clk 01:10:22]} {[%emt 00:00:53]} 10.
c4 {[%clk 01:01:49]} {[%emt 00:01:05]} e6 {[%clk 01:08:04]} {[%emt 00:02:47]}
11. Nc3 {[%clk 01:00:40]} {[%emt 00:01:39]} Rad8 {[%clk 01:02:04]} {[%emt
00:06:30]} 12. Rac1 {[%clk 00:57:13]} {[%emt 00:03:57]} g5 {[%clk 00:56:52]}
{[%emt 00:05:41]} 13. cxd5 {[%clk 00:45:55]} {[%emt 00:11:49]} exd5 {[%clk
00:56:26]} {[%emt 00:00:55]} 14. Bb5 {[%clk 00:37:58]} {[%emt 00:08:27]} Nf7
{[%clk 00:49:33]} {[%emt 00:07:22]} 15. Na4 {[%clk 00:31:19]} {[%emt 00:07:09]}
Nd6 {[%clk 00:45:58]} {[%emt 00:04:05]} 16. Bxc6 {[%clk 00:27:50]} {[%emt
00:04:00]} bxc6 {[%clk 00:45:56]} {[%emt 00:00:32]} 17. Qa6 {[%clk 00:24:16]}
{[%emt 00:04:03]} Nc4 {[%clk 00:39:21]} {[%emt 00:07:05]} 18. Bb4 {[%clk
00:22:18]} {[%emt 00:02:29]} Rfe8 {[%clk 00:38:41]} {[%emt 00:01:09]} 19. b3
{[%clk 00:18:01]} {[%emt 00:04:48]} Nb6 {[%clk 00:36:41]} {[%emt 00:02:30]} 20.
Nc5 {[%clk 00:17:33]} {[%emt 00:00:57]} Qf7 {[%clk 00:36:23]} {[%emt 00:00:47]}
21. Nb7 {[%clk 00:16:12]} {[%emt 00:01:53]} Rb8 {[%clk 00:35:00]} {[%emt
00:01:52]} 22. Na5 {[%clk 00:14:51]} {[%emt 00:01:52]} Nc8 {[%clk 00:29:21]}
{[%emt 00:06:09]} 23. Nxc6 {[%clk 00:13:49]} {[%emt 00:01:32]} Rb6 {[%emt
00:00:49]} 24. Qa3 {[%clk 00:09:57]} {[%emt 00:03:45]} Qd7 {[%clk 00:19:44]}
{[%emt 00:10:24]} 25. Nxa7 {[%clk 00:07:00]} {[%emt 00:03:28]} Nd6 {[%clk
00:13:21]} {[%emt 00:06:52]} 26. Bc5 {[%clk 00:06:10]} {[%emt 00:01:20]} Ra8
{[%clk 00:10:59]} {[%emt 00:02:52]} 27. Bxb6 {[%clk 00:04:14]} {[%emt
00:02:27]} cxb6 {[%clk 00:11:20]} {[%emt 00:00:08]} 28. Qb4 {[%clk 00:03:45]}
{[%emt 00:00:59]} Rxa7 {[%clk 00:10:28]} {[%emt 00:01:23]} 29. Qxb6 {[%clk
00:04:00]} {[%emt 00:00:15]} Rxa2 {[%clk 00:09:44]} {[%emt 00:01:13]} 30. Rc7
{[%clk 00:02:58]} {[%emt 00:01:32]} Qd8 {[%clk 00:09:25]} {[%emt 00:00:50]} 31.
Rxg7+ {[%clk 00:03:07]} {[%emt 00:00:21]} Kxg7 {[%clk 00:09:41]} {[%emt
00:00:14]} 32. Qxd8 {[%clk 00:03:31]} {[%emt 00:00:05]} Nf7 {[%clk 00:09:41]}
{[%emt 00:00:30]} 33. Qxd5 {[%clk 00:03:48]} {[%emt 00:00:14]} 1-0

[Event "Klubbmästerskap 2025 Torsdagar"]
[Site "Linköping, Sweden"]
[Date "2025.03.06"]
[Round "6.2"]
[White "Gustafsson, Nils"]
[Black "Westerberg, Hampus"]
[Result "1-0"]
[TimeControl "90 min + 30 sec/move"]
[WhiteElo "1860"]
[BlackElo "1851"]

1. e4 {[%clk 01:30:54]} {[%emt 00:00:05]} c5 {[%clk 01:30:57]} {[%emt
00:00:04]} 2. Nf3 {[%clk 01:31:05]} {[%emt 00:00:17]} Nc6 {[%clk 01:31:23]}
{[%emt 00:00:05]} 3. Bb5 {[%clk 01:31:18]} {[%emt 00:00:17]} e5 {[%clk
01:31:45]} {[%emt 00:00:08]} 4. Bxc6 {[%clk 01:30:21]} {[%emt 00:01:27]} dxc6
{[%clk 01:32:03]} {[%emt 00:00:13]} 5. h3 {[%clk 01:29:54]} {[%emt 00:00:57]}
Bd6 {[%clk 01:31:23]} {[%emt 00:01:09]} 6. d3 {[%clk 01:29:24]} {[%emt
00:01:00]} h6 {[%clk 01:20:08]} {[%emt 00:11:45]} 7. Nbd2 {[%clk 01:23:08]}
{[%emt 00:06:46]} Ne7 {[%clk 01:15:41]} {[%emt 00:04:56]} 8. Nc4 {[%clk
01:21:04]} {[%emt 00:02:36]} Ng6 {[%clk 01:16:01]} {[%emt 00:00:10]} 9. b3
{[%clk 01:16:45]} {[%emt 00:04:49]} O-O {[%clk 01:13:26]} {[%emt 00:03:05]} 10.
O-O {[%clk 01:15:00]} {[%emt 00:02:14]} Bc7 {[%clk 01:11:49]} {[%emt 00:02:08]}
11. Be3 {[%clk 01:12:25]} {[%emt 00:03:05]} Qe7 {[%clk 01:10:32]} {[%emt
00:01:47]} 12. Re1 {[%clk 01:10:27]} {[%emt 00:02:28]} Be6 {[%clk 01:06:07]}
{[%emt 00:04:56]} 13. a4 {[%clk 01:09:25]} {[%emt 00:01:32]} b5 {[%clk
00:57:17]} {[%emt 00:09:19]} 14. Ncd2 {[%clk 01:07:31]} {[%emt 00:02:24]} a6
{[%clk 00:53:06]} {[%emt 00:04:42]} 15. Qe2 {[%clk 01:06:56]} {[%emt 00:01:04]}
Qd6 {[%clk 00:49:26]} {[%emt 00:04:11]} 16. Red1 {[%clk 01:05:38]} {[%emt
00:01:47]} Qe7 {[%clk 00:49:34]} {[%emt 00:00:22]} 17. Ra2 {[%clk 01:02:52]}
{[%emt 00:03:16]} Bd6 {[%clk 00:45:07]} {[%emt 00:04:57]} 18. Rda1 {[%clk
01:00:27]} {[%emt 00:02:54]} b4 {[%clk 00:43:17]} {[%emt 00:02:21]} 19. Re1
{[%clk 00:58:45]} {[%emt 00:02:11]} a5 {[%clk 00:43:12]} {[%emt 00:00:36]} 20.
Raa1 {[%clk 00:58:52]} {[%emt 00:00:23]} Rad8 {[%clk 00:43:24]} {[%emt
00:00:19]} 21. Rad1 {[%clk 00:58:48]} {[%emt 00:00:33]} Bc7 {[%clk 00:43:27]}
{[%emt 00:00:27]} 22. Nf1 {[%clk 00:57:46]} {[%emt 00:01:32]} Nf4 {[%clk
00:40:47]} {[%emt 00:03:11]} 23. Bxf4 {[%clk 00:56:08]} {[%emt 00:02:07]} exf4
{[%clk 00:41:08]} {[%emt 00:00:10]} 24. Rd2 {[%clk 00:39:53]} {[%emt 00:16:45]}
Rd7 {[%clk 00:36:38]} {[%emt 00:05:00]} 25. Red1 {[%clk 00:36:29]} {[%emt
00:03:53]} Rfd8 {[%clk 00:36:52]} {[%emt 00:00:16]} 26. d4 {[%clk 00:35:43]}
{[%emt 00:01:16]} g5 {[%clk 00:26:09]} {[%emt 00:11:13]} 27. d5 {[%clk
00:32:06]} {[%emt 00:04:07]} cxd5 {[%clk 00:26:24]} {[%emt 00:00:16]} 28. exd5
{[%clk 00:32:07]} {[%emt 00:00:28]} Bf5 {[%clk 00:26:00]} {[%emt 00:00:54]} 29.
Qxe7 {[%clk 00:30:45]} {[%emt 00:01:51]} Rxe7 {[%clk 00:26:21]} {[%emt
00:00:09]} 30. d6 {[%clk 00:30:49]} {[%emt 00:00:27]} Rxd6 {[%clk 00:23:09]}
{[%emt 00:03:43]} 31. Rxd6 {[%clk 00:31:08]} {[%emt 00:00:10]} Bxd6 {[%clk
00:23:34]} {[%emt 00:00:05]} 32. Rxd6 {[%clk 00:31:23]} {[%emt 00:00:15]} Bxc2
{[%clk 00:24:00]} {[%emt 00:00:05]} 33. Rc6 {[%clk 00:26:09]} {[%emt 00:05:43]}
c4 {[%clk 00:21:07]} {[%emt 00:03:23]} 34. Rxc4 {[%clk 00:25:49]} {[%emt
00:00:48]} Bxb3 {[%clk 00:21:30]} {[%emt 00:00:09]} 35. Rc8+ {[%clk 00:25:54]}
{[%emt 00:00:25]} Kg7 {[%clk 00:21:24]} {[%emt 00:00:37]} 36. Ra8 {[%clk
00:26:16]} {[%emt 00:00:07]} Bxa4 {[%clk 00:14:01]} {[%emt 00:07:54]} 37. Rxa5
{[%clk 00:26:30]} {[%emt 00:00:15]} Bd1 {[%clk 00:12:29]} {[%emt 00:02:01]} 38.
Rb5 {[%clk 00:22:00]} {[%emt 00:05:02]} Bxf3 {[%clk 00:09:33]} {[%emt
00:03:26]} 39. gxf3 {[%clk 00:22:11]} {[%emt 00:00:18]} Rd7 {[%clk 00:09:23]}
{[%emt 00:00:41]} 40. Rxb4 {[%clk 00:22:13]} {[%emt 00:00:29]} Rd6 {[%clk
00:09:20]} {[%emt 00:00:32]} 41. Kg2 {[%clk 00:21:35]} {[%emt 00:01:08]} Kg6
{[%clk 00:09:15]} {[%emt 00:00:35]} 42. Rb2 {[%clk 00:21:39]} {[%emt 00:00:25]}
Rc6 {[%clk 00:07:17]} {[%emt 00:02:29]} 43. Nd2 {[%clk 00:21:20]} {[%emt
00:00:48]} Kf5 {[%clk 00:06:20]} {[%emt 00:01:28]} 44. Rb5+ {[%clk 00:20:58]}
{[%emt 00:00:52]} Kg6 {[%clk 00:06:30]} {[%emt 00:00:20]} 45. Ne4 {[%clk
00:20:02]} {[%emt 00:01:25]} Ra6 {[%clk 00:06:31]} {[%emt 00:00:30]} 46. Rd5
{[%clk 00:19:18]} {[%emt 00:01:13]} Ra7 {[%clk 00:06:16]} {[%emt 00:00:47]} 47.
Rd6+ {[%clk 00:17:46]} {[%emt 00:02:01]} Kg7 {[%clk 00:06:29]} {[%emt
00:00:17]} 48. Nc5 {[%clk 00:17:03]} {[%emt 00:01:13]} Rc7 {[%clk 00:06:19]}
{[%emt 00:00:40]} 49. Nd7 {[%clk 00:16:05]} {[%emt 00:01:27]} Ra7 {[%clk
00:06:28]} {[%emt 00:00:22]} 50. Ne5 {[%clk 00:15:21]} {[%emt 00:01:14]} Re7
{[%clk 00:06:39]} {[%emt 00:00:18]} 51. Ng4 {[%clk 00:14:45]} {[%emt 00:01:06]}
h5 {[%clk 00:06:09]} {[%emt 00:01:01]} 52. Nh2 {[%clk 00:14:28]} {[%emt
00:00:45]} f6 {[%clk 00:04:32]} {[%emt 00:02:09]} 53. Nf1 {[%clk 00:14:36]}
{[%emt 00:00:22]} Kg6 {[%clk 00:04:21]} {[%emt 00:00:42]} 54. Nd2 {[%clk
00:14:54]} {[%emt 00:00:11]} Kf5 {[%clk 00:04:14]} {[%emt 00:00:37]} 55. Ne4
{[%clk 00:14:07]} {[%emt 00:01:17]} Rf7 {[%clk 00:04:36]} {[%emt 00:00:08]} 56.
Rb6 {[%clk 00:14:04]} {[%emt 00:00:33]} Ke5 {[%clk 00:04:12]} {[%emt 00:00:54]}
57. Rb5+ {[%clk 00:12:38]} {[%emt 00:01:56]} Ke6 {[%clk 00:04:20]} {[%emt
00:00:22]} 58. Rb8 {[%clk 00:12:06]} {[%emt 00:01:01]} h4 {[%clk 00:04:11]}
{[%emt 00:00:40]} 59. Re8+ {[%clk 00:11:44]} {[%emt 00:00:52]} Kd7 {[%clk
00:04:07]} {[%emt 00:00:35]} 60. Ra8 {[%clk 00:11:18]} {[%emt 00:00:27]} Ke6
{[%clk 00:04:36]} 61. Rb8 {[%clk 00:09:58]} {[%emt 00:02:19]} Ke5 {[%clk
00:04:51]} {[%emt 00:00:15]} 62. Rb5+ {[%clk 00:09:52]} {[%emt 00:00:36]} Ke6
{[%clk 00:04:56]} {[%emt 00:00:25]} 63. Rb7 {[%clk 00:09:24]} {[%emt 00:00:58]}
Rf8 {[%clk 00:04:38]} {[%emt 00:00:48]} 64. Nc5+ {[%clk 00:09:37]} {[%emt
00:00:17]} Kd6 {[%clk 00:04:33]} {[%emt 00:00:35]} 65. Na6 {[%clk 00:08:40]}
{[%emt 00:01:27]} Ke6 {[%clk 00:03:54]} {[%emt 00:01:09]} 66. Kf1 {[%clk
00:07:43]} {[%emt 00:01:27]} Rc8 {[%clk 00:03:11]} {[%emt 00:01:13]} 67. Rb6+
{[%clk 00:07:03]} {[%emt 00:01:11]} Kf5 {[%clk 00:03:16]} {[%emt 00:00:25]} 68.
Nb4 {[%clk 00:06:26]} {[%emt 00:01:06]} Rc1+ {[%clk 00:03:15]} {[%emt
00:00:31]} 69. Kg2 {[%clk 00:06:23]} {[%emt 00:00:33]} Rc8 {[%clk 00:03:16]}
{[%emt 00:00:28]} 70. Nd5 {[%clk 00:06:11]} {[%emt 00:00:42]} Rf8 {[%clk
00:03:34]} {[%emt 00:00:12]} 71. Ne7+ {[%clk 00:06:03]} {[%emt 00:00:38]} Ke5
{[%clk 00:03:26]} {[%emt 00:00:38]} 72. Ng6+ {[%emt 00:00:09]} 1-0

[Event "Klubbmästerskap 2025 Torsdagar"]
[Site "Linköping, Sweden"]
[Date "2025.03.06"]
[Round "6.3"]
[White "Roginski, Hugo"]
[Black "Ståhlberg, Adam"]
[Result "1-0"]
[TimeControl "90 min + 30 sec/move"]
[WhiteElo "1884"]
[BlackElo "1944"]

1. e4 {[%clk 01:30:57]} {[%emt 00:00:02]} c6 {[%clk 01:30:36]} {[%emt
00:00:25]} 2. d4 {[%clk 01:31:22]} {[%emt 00:00:04]} d5 {[%clk 01:31:01]}
{[%emt 00:00:05]} 3. Nc3 {[%clk 01:31:49]} {[%emt 00:00:03]} dxe4 {[%clk
01:31:26]} {[%emt 00:00:06]} 4. Nxe4 {[%clk 01:32:12]} {[%emt 00:00:06]} Nf6
{[%clk 01:31:46]} {[%emt 00:00:10]} 5. Nxf6+ {[%clk 01:32:35]} {[%emt
00:00:07]} exf6 {[%clk 01:32:11]} {[%emt 00:00:05]} 6. Nf3 {[%clk 01:30:59]}
{[%emt 00:02:05]} Bd6 {[%clk 01:32:12]} {[%emt 00:00:30]} 7. c3 {[%clk
01:30:48]} {[%emt 00:00:40]} O-O {[%clk 01:32:30]} {[%emt 00:00:12]} 8. Bd3
{[%clk 01:30:45]} {[%emt 00:00:33]} Re8+ {[%clk 01:32:13]} {[%emt 00:00:48]} 9.
Be3 {[%clk 01:31:07]} {[%emt 00:00:08]} Bg4 {[%clk 01:32:30]} {[%emt 00:00:13]}
10. Qc2 {[%clk 01:28:03]} {[%emt 00:03:33]} Bxf3 {[%clk 01:08:17]} {[%emt
00:24:44]} 11. Bxh7+ {[%clk 01:19:47]} {[%emt 00:08:47]} Kh8 {[%clk 01:08:39]}
{[%emt 00:00:07]} 12. gxf3 {[%clk 01:20:13]} {[%emt 00:00:03]} Bf4 {[%clk
01:04:49]} {[%emt 00:04:21]} 13. O-O-O {[%clk 01:17:55]} {[%emt 00:02:47]}
Bxe3+ {[%clk 01:04:28]} {[%emt 00:00:51]} 14. fxe3 {[%clk 01:18:18]} {[%emt
00:00:07]} Qd5 {[%clk 00:16:47]} {[%emt 00:48:11]} 15. Be4 {[%clk 00:56:24]}
{[%emt 00:22:23]} Qxa2 {[%clk 00:14:02]} {[%emt 00:03:16]} 16. Qg2 {[%clk
00:52:12]} {[%emt 00:04:41]} Qe6 {[%clk 00:14:23]} {[%emt 00:00:10]} 17. Rdg1
{[%emt 00:04:58]} Rg8 18. Qg3 g5 19. h4 g4 20. Qf4 f5 21. Bxf5 {[%clk
00:47:44]} 1-0

[Event "Klubbmästerskap 2025 Torsdagar"]
[Site "Linköping, Sweden"]
[Date "2025.03.06"]
[Round "6.4"]
[White "Skytt, Klas"]
[Black "Pettersson, Börje"]
[Result "0-1"]
[TimeControl "90 min + 30 sec/move"]
[WhiteElo "1764"]
[BlackElo "1906"]

1. d4 {[%clk 01:30:48]} {[%emt 00:00:11]} d5 {[%clk 01:30:34]} {[%emt
00:00:24]} 2. c4 {[%clk 01:30:59]} {[%emt 00:00:21]} e6 {[%clk 01:30:14]}
{[%emt 00:00:48]} 3. Nc3 {[%clk 01:31:03]} {[%emt 00:00:28]} Be7 {[%clk
01:30:23]} {[%emt 00:00:20]} 4. Nf3 {[%clk 01:30:32]} {[%emt 00:01:02]} Nf6
{[%clk 01:30:12]} {[%emt 00:00:40]} 5. Bg5 {[%clk 01:29:16]} {[%emt 00:01:46]}
O-O {[%clk 01:30:08]} {[%emt 00:00:33]} 6. e3 {[%clk 01:29:31]} {[%emt
00:00:16]} h6 {[%clk 01:30:16]} {[%emt 00:00:21]} 7. Bh4 {[%clk 01:28:37]}
{[%emt 00:01:24]} b6 {[%clk 01:30:27]} {[%emt 00:00:19]} 8. cxd5 {[%clk
01:27:46]} {[%emt 00:01:22]} Nxd5 {[%clk 01:30:09]} {[%emt 00:00:47]} 9. Bxe7
{[%clk 01:27:50]} {[%emt 00:00:26]} Qxe7 {[%clk 01:30:26]} {[%emt 00:00:12]} 10.
Rc1 {[%clk 01:26:04]} {[%emt 00:02:16]} Bb7 {[%clk 01:24:35]} {[%emt 00:06:21]}
11. Be2 {[%clk 01:22:52]} {[%emt 00:03:42]} Rd8 {[%clk 01:18:39]} {[%emt
00:06:25]} 12. O-O {[%clk 01:19:40]} {[%emt 00:03:43]} c5 {[%clk 01:18:16]}
{[%emt 00:00:53]} 13. Nxd5 {[%clk 01:12:02]} {[%emt 00:08:08]} Bxd5 {[%clk
01:10:33]} {[%emt 00:08:12]} 14. Bc4 {[%clk 01:11:06]} {[%emt 00:01:27]} Nc6
{[%clk 01:07:26]} {[%emt 00:03:37]} 15. Bxd5 {[%clk 01:09:36]} {[%emt
00:02:01]} Rxd5 {[%clk 01:06:11]} {[%emt 00:01:44]} 16. Qa4 {[%clk 01:09:28]}
{[%emt 00:00:38]} Qd7 {[%clk 00:48:49]} {[%emt 00:17:51]} 17. dxc5 {[%clk
01:05:21]} {[%emt 00:04:39]} bxc5 {[%clk 00:45:20]} {[%emt 00:03:58]} 18. Rfd1
{[%clk 01:02:52]} {[%emt 00:03:00]} Rd8 {[%clk 00:43:42]} {[%emt 00:02:08]} 19.
Rxd5 {[%clk 01:01:27]} {[%emt 00:01:55]} Qxd5 {[%clk 00:44:07]} {[%emt
00:00:04]} 20. a3 {[%clk 00:55:33]} {[%emt 00:06:25]} a5 {[%clk 00:39:24]}
{[%emt 00:05:13]} 21. h3 {[%clk 00:52:14]} {[%emt 00:03:48]} Rb8 {[%clk
00:30:13]} {[%emt 00:09:41]} 22. Qc2 {[%clk 00:44:37]} {[%emt 00:08:08]} Ne7
{[%clk 00:20:51]} {[%emt 00:09:51]} 23. Qc3 {[%clk 00:37:33]} {[%emt 00:07:34]}
a4 {[%clk 00:17:18]} {[%emt 00:04:02]} 24. Rc2 {[%clk 00:34:53]} {[%emt
00:03:11]} Rc8 {[%clk 00:12:43]} {[%emt 00:05:04]} 25. Qc4 {[%clk 00:34:07]}
{[%emt 00:01:17]} Qd1+ {[%clk 00:12:05]} {[%emt 00:01:07]} 26. Kh2 {[%clk
00:34:11]} {[%emt 00:00:14]} Qd6+ {[%clk 00:12:34]} 27. Kg1 {[%clk 00:32:14]}
{[%emt 00:02:33]} Qc6 {[%clk 00:10:36]} {[%emt 00:02:35]} 28. Ne5 {[%clk
00:31:47]} {[%emt 00:00:58]} Qd6 {[%clk 00:04:21]} {[%emt 00:06:45]} 29. Nd3
{[%clk 00:28:20]} {[%emt 00:03:57]} Nf5 {[%clk 00:03:32]} {[%emt 00:01:19]} 30.
Nxc5 {[%clk 00:26:02]} {[%emt 00:02:49]} Qd1+ {[%clk 00:03:49]} {[%emt
00:00:12]} 31. Kh2 {[%clk 00:26:08]} {[%emt 00:00:24]} Nd6 {[%clk 00:04:11]}
{[%emt 00:00:08]} 32. Qxa4 {[%clk 00:24:00]} {[%emt 00:02:38]} Rxc5 {[%clk
00:02:21]} {[%emt 00:02:19]} 33. Qa8+ {[%clk 00:23:14]} {[%emt 00:01:16]} Nc8
{[%clk 00:02:47]} {[%emt 00:00:05]} 34. Rxc5 {[%clk 00:21:00]} {[%emt
00:02:44]} Qd6+ {[%clk 00:03:14]} {[%emt 00:00:02]} 35. Re5 {[%clk 00:20:19]}
{[%emt 00:01:11]} Qxe5+ {[%clk 00:03:36]} {[%emt 00:00:07]} 36. g3 {[%clk
00:20:04]} {[%emt 00:00:47]} Qc7 {[%clk 00:03:54]} {[%emt 00:00:12]} 37. b4
{[%clk 00:20:10]} {[%emt 00:00:25]} Kh7 {[%clk 00:04:07]} {[%emt 00:00:16]} 38.
b5 {[%clk 00:19:09]} {[%emt 00:01:32]} g6 {[%clk 00:03:58]} {[%emt 00:00:38]}
39. a4 {[%clk 00:19:13]} {[%emt 00:00:27]} Nb6 {[%clk 00:04:22]} {[%emt
00:00:06]} 40. Qa6 {[%clk 00:18:27]} {[%emt 00:01:16]} Nc4 {[%clk 00:04:12]}
{[%emt 00:00:40]} 41. Qc6 {[%clk 00:18:23]} {[%emt 00:00:35]} Qxc6 {[%clk
00:03:11]} {[%emt 00:01:31]} 42. bxc6 {[%clk 00:18:45]} {[%emt 00:00:08]} Nb6
{[%clk 00:03:32]} {[%emt 00:00:07]} 43. a5 {[%clk 00:17:49]} {[%emt 00:01:28]}
Nc8 {[%clk 00:03:46]} {[%emt 00:00:16]} 44. Kg2 {[%clk 00:17:00]} {[%emt
00:01:19]} Kg7 {[%clk 00:04:10]} {[%emt 00:00:05]} 45. Kf3 {[%clk 00:17:05]}
{[%emt 00:00:26]} Kf6 {[%clk 00:04:18]} {[%emt 00:00:21]} 46. Ke4 {[%clk
00:17:13]} {[%emt 00:00:23]} Ke7 {[%clk 00:04:42]} {[%emt 00:00:06]} 47. f4
{[%clk 00:14:07]} {[%emt 00:03:37]} Kd6 {[%clk 00:04:54]} {[%emt 00:00:17]} 48.
c7 {[%clk 00:13:53]} {[%emt 00:00:45]} f6 {[%clk 00:04:10]} {[%emt 00:01:14]}
49. g4 {[%clk 00:14:00]} {[%emt 00:00:23]} Kxc7 {[%clk 00:04:01]} {[%emt
00:00:39]} 50. f5 {[%clk 00:13:33]} {[%emt 00:00:57]} Nd6+ {[%clk 00:03:48]}
{[%emt 00:00:43]} 51. Kd4 {[%clk 00:10:32]} {[%emt 00:03:32]} gxf5 {[%clk
00:03:10]} {[%emt 00:01:07]} 52. gxf5 {[%clk 00:10:23]} {[%emt 00:00:39]} Nxf5+
{[%clk 00:03:29]} {[%emt 00:00:11]} 53. Ke4 {[%clk 00:10:28]} {[%emt 00:00:26]}
Kc6 {[%clk 00:03:30]} {[%emt 00:00:29]} 54. Kf4 {[%clk 00:10:27]} {[%emt
00:00:30]} Kb5 {[%clk 00:02:08]} {[%emt 00:01:52]} 55. e4 {[%clk 00:10:45]}
{[%emt 00:00:13]} Ng7 {[%clk 00:01:35]} {[%emt 00:01:03]} 0-1

[Event "Klubbmästerskap 2025 Torsdagar"]
[Site "Linköping, Sweden"]
[Date "2025.03.06"]
[Round "6.5"]
[White "Qwarfort, Fredrik"]
[Black "Karlsson, Henrik 1974"]
[Result "1-0"]
[TimeControl "90 min + 30 sec/move"]
[WhiteElo "1826"]
[BlackElo "1804"]

1. d4 {[%clk 01:30:57]} {[%emt 00:00:03]} e6 {[%clk 01:30:51]} {[%emt
00:00:10]} 2. c4 {[%clk 01:31:13]} {[%emt 00:00:14]} Nf6 {[%clk 01:31:15]}
{[%emt 00:00:06]} 3. Nf3 {[%clk 01:31:15]} {[%emt 00:00:28]} Bb4+ {[%clk
01:31:24]} {[%emt 00:00:20]} 4. Bd2 {[%clk 01:31:39]} {[%emt 00:00:07]} Qe7
{[%clk 01:31:48]} {[%emt 00:00:06]} 5. a3 {[%clk 01:31:42]} {[%emt 00:00:27]}
Bxd2+ {[%clk 01:32:07]} {[%emt 00:00:11]} 6. Qxd2 {[%clk 01:31:58]} {[%emt
00:00:14]} b6 {[%clk 01:32:05]} {[%emt 00:00:31]} 7. g3 {[%clk 01:31:24]}
{[%emt 00:01:04]} Bb7 {[%clk 01:32:29]} {[%emt 00:00:07]} 8. Bg2 {[%clk
01:31:51]} {[%emt 00:00:03]} O-O {[%clk 01:31:11]} {[%emt 00:01:47]} 9. O-O
{[%clk 01:31:10]} {[%emt 00:01:10]} d6 {[%clk 01:31:12]} {[%emt 00:00:29]} 10.
Nc3 {[%clk 01:31:01]} {[%emt 00:00:40]} a6 {[%clk 01:31:33]} {[%emt 00:00:10]}
11. Rfe1 {[%clk 01:30:36]} {[%emt 00:00:54]} Nbd7 {[%clk 01:31:43]} {[%emt
00:00:20]} 12. e4 {[%clk 01:29:09]} {[%emt 00:01:58]} Rfd8 {[%clk 01:31:36]}
{[%emt 00:00:36]} 13. d5 {[%clk 01:22:09]} {[%emt 00:07:31]} e5 {[%clk
01:29:29]} {[%emt 00:02:37]} 14. Rad1 {[%clk 01:17:53]} {[%emt 00:04:46]} Bc8
{[%clk 01:24:21]} {[%emt 00:05:38]} 15. Nh4 {[%clk 01:11:30]} {[%emt 00:06:52]}
Nf8 {[%clk 01:21:27]} {[%emt 00:03:24]} 16. h3 {[%clk 01:03:22]} {[%emt
00:08:38]} Bd7 {[%clk 01:19:29]} {[%emt 00:02:28]} 17. Nf5 {[%clk 01:01:50]}
{[%emt 00:02:02]} Bxf5 {[%clk 01:17:42]} {[%emt 00:02:18]} 18. exf5 {[%clk
01:02:19]} {[%emt 00:00:01]} b5 {[%clk 01:15:55]} {[%emt 00:02:17]} 19. cxb5
{[%clk 00:59:43]} {[%emt 00:03:06]} axb5 {[%clk 01:16:18]} {[%emt 00:00:07]} 20.
Na2 {[%clk 00:53:57]} {[%emt 00:06:15]} Qd7 {[%clk 01:16:03]} {[%emt 00:00:45]}
21. g4 {[%clk 00:54:08]} {[%emt 00:00:20]} c5 {[%clk 01:16:25]} {[%emt
00:00:08]} 22. dxc6 {[%clk 00:54:15]} {[%emt 00:00:24]} Qc7 {[%clk 01:16:46]}
{[%emt 00:00:08]} 23. Qc3 {[%clk 00:42:02]} {[%emt 00:12:44]} h6 {[%clk
01:14:47]} {[%emt 00:02:28]} 24. Nb4 {[%clk 00:41:43]} {[%emt 00:00:49]} N8h7
{[%clk 01:14:31]} {[%emt 00:00:45]} 25. Qd3 {[%clk 00:39:48]} {[%emt 00:02:26]}
Ra5 {[%clk 01:13:48]} {[%emt 00:01:13]} 26. Rxe5 {[%clk 00:38:58]} {[%emt
00:01:20]} 1-0